fUST/lending_fUST_20240424
["ID","MTS","AMOUNT","RATE_DAILY","PERIOD"]
[323366580,1713931848102,-500.0,0.00016438,2]
[323366581,1713931848111,-500.0,0.00016438,2]
[323366582,1713931848122,-500.0,0.00016438,2]
[323366583,1713931848133,-419.54771768,0.00016438,2]
[323366584,1713931848144,-1040.52,0.00016438,2]
[323366585,1713931848155,-500.0,0.00016438,2]
[323366586,1713931848166,-756.95,0.00016438,2]
[323366587,1713931848176,-389.04537626,0.00016438,2]
[323366588,1713931848186,-512.73744312,0.00016438,2]
[323366589,1713931848195,-6752.12,0.00016438,2]
[323366590,1713931848205,-897.75,0.00016438,2]
[323366591,1713931848216,-500.0,0.00016438,2]
[323366592,1713931848226,-500.0,0.00016438,2]
[323366593,1713931848236,-3950.25,0.00016438,2]
[323366594,1713931848246,-500.0,0.00016438,2]
[323366595,1713931848256,-151.0,0.00016438,2]
[323366596,1713931848266,-500.13954189,0.00016438,2]
[323366597,1713931848276,-500.0,0.00016438,2]
[323366598,1713931848286,-500.0,0.00016438,2]
[323366599,1713931848297,-502.28764587,0.00016438,2]
[323366600,1713931848308,-1118.92,0.00016438,2]
[323366601,1713931848318,-1345.6,0.00016438,2]
[323366602,1713931848327,-500.0,0.00016438,2]
[323366603,1713931848338,-500.0,0.00016438,2]
[323366604,1713931848348,-5055.77,0.00016438,2]
[323366605,1713931848357,-1483.99,0.00016438,2]
[323366606,1713931848367,-500.0,0.00016438,2]
[323366607,1713931848377,-500.0,0.00016438,2]
[323366608,1713931848387,-1924.64,0.00016438,2]
[323366609,1713931848397,-500.0,0.00016438,2]
[323366610,1713931848409,-502.85921865,0.00016438,2]
[323366611,1713931848419,-500.0,0.00016438,2]
[323366612,1713931848428,-500.0,0.00016438,2]
[323366613,1713931848437,-500.0,0.00016438,2]
[323366614,1713931848447,-610.08,0.00016438,2]
[323366615,1713931848458,-500.77343479,0.00016438,2]
[323366616,1713931848467,-522.08452962,0.00016438,2]
[323366617,1713931848479,-500.0,0.00016438,2]
[323366618,1713931848489,-500.0,0.00016438,2]
[323366619,1713931848499,-500.0,0.00016438,2]
[323366620,1713931848508,-500.0,0.00016438,2]
[323366621,1713931848518,-1413.45,0.00016438,2]
[323366622,1713931848528,-543.46,0.00016438,2]
[323366623,1713931848538,-500.0,0.00016438,2]
[323366624,1713931848548,-500.0,0.00016438,2]
[323366625,1713931848558,-500.0,0.00016438,2]
[323366626,1713931848568,-601.58,0.00016438,2]
[323366627,1713931848578,-907.88,0.00016438,2]
[323366628,1713931848587,-500.40916071,0.00016438,2]
[323366629,1713931848598,-2497.95,0.00016438,2]
[323366630,1713931848608,-437.71317315,0.00016438,2]
[323366631,1713931848618,-1015.38,0.00016438,2]
[323366632,1713931848629,-500.84507688,0.00016438,2]
[323366633,1713931848639,-1593.35,0.00016438,2]
[323366634,1713931848652,-500.0,0.00016438,2]
[323366635,1713931848662,-268.92614227,0.00016438,2]
[323366636,1713931848671,-500.0,0.00016438,2]
[323366637,1713931848681,-313.11472914,0.00016438,2]
[323366638,1713931848691,-783.03,0.00016438,2]
[323366639,1713931848701,-500.0,0.00016438,2]
[323366640,1713931848711,-500.0,0.00016438,2]
[323366641,1713931848722,-500.0,0.00016438,2]
[323366642,1713931848732,-500.76994884,0.00016438,2]
[323366643,1713931848743,-2456.05,0.00016438,2]
[323366644,1713931848753,-500.0,0.00016438,2]
[323366645,1713931848764,-500.0,0.00016438,2]
[323366646,1713931848775,-181.10246799,0.00016438,2]
[323366647,1713931848799,-912.35,0.00016438,2]
[323366648,1713931848834,-500.0,0.00016438,2]
[323366649,1713931848876,-500.0,0.00016438,2]
[323366650,1713931848915,-500.0,0.00016438,2]
[323366651,1713931848945,-500.0,0.00016438,2]
[323366652,1713931848954,-484.08119159,0.00016438,2]
[323366653,1713931848964,-500.0,0.00016438,2]
[323366654,1713931848973,-338.76861173,0.00016438,2]
[323366655,1713931848982,-523.88,0.00016438,2]
[323366656,1713931848991,-502.203849,0.00016438,2]
[323366657,1713931849000,-500.0,0.00016438,2]
[323366658,1713931849010,-716.97,0.00016438,2]
[323366659,1713931849022,-656.55,0.00016438,2]
[323366660,1713931849031,-1084.64,0.00016438,2]
[323366661,1713931849041,-987.43,0.00016438,2]
[323366662,1713931849050,-500.0,0.00016438,2]
[323366663,1713931849060,-500.0,0.00016438,2]
[323366664,1713931849069,-1406.85,0.00016438,2]
[323366665,1713931849078,-500.59986434,0.00016438,2]
[323366666,1713931849087,-500.0,0.00016438,2]
[323366667,1713931849097,-500.0,0.00016438,2]
[323366668,1713931849106,-500.2960417,0.00016438,2]
[323366669,1713931849116,-523.13,0.00016438,2]
[323366670,1713931849125,-500.81962345,0.00016438,2]
[323366671,1713931849134,-500.0,0.00016438,2]
[323366672,1713931849144,-500.0,0.00016438,2]
[323366673,1713931849154,-500.74636177,0.00016438,2]
[323366674,1713931849162,-500.0,0.00016438,2]
[323366675,1713931849172,-506.66663132,0.00016438,2]
[323366676,1713931849180,-500.55821023,0.00016438,2]
[323366677,1713931849190,-500.0,0.00016438,2]
[323366678,1713931849199,-500.0,0.00016438,2]
[323366679,1713931849209,-500.0,0.00016438,2]
[323366680,1713931849217,-828.38,0.00016438,2]
[323366681,1713931849226,-17802.20127495,0.00016438,2]
[323366682,1713931849540,-632.22314612,0.00016438,2]
[323366683,1713931849714,-154.81422293,0.00015159,2]
[323366684,1713931849724,-776.159464,0.000163,2]
[323366685,1713931849733,-776.159464,0.000163,2]
[323366686,1713931849743,-776.159464,0.000163,2]
[323366687,1713931849752,-4877.74557893,0.00016438,2]
[323366688,1713931849761,-500.83165613,0.00016438,2]
[323366689,1713931849770,-504.04218812,0.00016438,2]
[323366690,1713931849902,-500.0,0.00016438,2]
[323366691,1713931849912,-500.0,0.00016438,2]
[323366692,1713931849921,-500.0,0.00016438,2]
[323366693,1713931849930,-500.0,0.00016438,2]
[323366694,1713931849939,-1932.52,0.00016438,2]
[323366695,1713931849948,-500.55076593,0.00016438,2]
[323366696,1713931849957,-500.0,0.00016438,2]
[323366697,1713931849967,-693.89,0.00016438,2]
[323366698,1713931849976,-500.0,0.00016438,2]
[323366699,1713931849985,-500.76294847,0.00016438,2]
[323366700,1713931849994,-769.01,0.00016438,2]
[323366701,1713931850003,-10872.7,0.00016438,2]
[323366702,1713931850013,-889.28,0.00016438,2]
[323366703,1713931850023,-7170.17,0.00016438,2]
[323366704,1713931850032,-500.0,0.00016438,2]
[323366705,1713931850042,-16724.82,0.00016438,2]
[323366706,1713931850051,-500.0,0.00016438,2]
[323366707,1713931850061,-500.0,0.00016438,2]
[323366708,1713931850071,-500.0,0.00016438,2]
[323366709,1713931850080,-500.0,0.00016438,2]
[323366710,1713931850089,-14563.59,0.00016438,2]
[323366711,1713931850100,-500.0,0.00016438,2]
[323366712,1713931850110,-6666.7,0.00016438,2]
[323366713,1713931850119,-500.0,0.00016438,2]
[323366714,1713931850129,-500.0,0.00016438,2]
[323366715,1713931850138,-500.0,0.00016438,2]
[323366716,1713931850147,-500.9898219,0.00016438,2]
[323366717,1713931850158,-1181.18,0.00016438,2]
[323366718,1713931850167,-729.9,0.00016438,2]
[323366719,1713931850177,-500.0,0.00016438,2]
[323366720,1713931850186,-500.0,0.00016438,2]
[323366721,1713931850195,-2000.0,0.00016438,2]
[323366722,1713931850204,-500.0,0.00016438,2]
[323366723,1713931850213,-500.82405238,0.00016438,2]
[323366724,1713931850223,-3155.24,0.00016438,2]
[323366725,1713931850232,-547.87,0.00016438,2]
[323366726,1713931850241,-500.0,0.00016438,2]
[323366727,1713931850250,-1189.31,0.00016438,2]
[323366728,1713931850259,-500.0,0.00016438,2]
[323366729,1713931850269,-400.0,0.00016438,2]
[323366730,1713931850278,-307.1768932,0.00016438,2]
[323366731,1713931850287,-420.0,0.00016499,2]
[323366732,1713931850297,-272.57129579,0.000165,2]
[323366733,1713931850306,-406.9728,0.00016683,2]
[323366734,1713931850315,-203.583665,0.00016683,2]
[323366735,1713931850324,-203.583665,0.00016683,2]
[323366736,1713931850334,-203.583665,0.00016683,2]
[323366737,1713931850343,-203.583665,0.00016683,2]
[323366738,1713931850352,-154.3508919,0.000167,2]
[323366739,1713931850362,-306.0,0.000167,2]
[323366740,1713931850371,-500.0,0.00016712,2]
[323366741,1713931850381,-500.0,0.00016712,2]
[323366742,1713931850390,-500.0,0.00016712,2]
[323366743,1713931850401,-1748.62,0.00016712,2]
[323366744,1713931850410,-501.6743332,0.00016712,2]
[323366745,1713931850420,-944.58,0.00016712,2]
[323366746,1713931850429,-500.0,0.00016712,2]
[323366747,1713931850441,-674.91,0.00016712,2]
[323366748,1713931850451,-500.0,0.00016712,2]
[323366749,1713931850460,-510.45822436,0.00016712,2]
[323366750,1713931850471,-500.0,0.00016712,2]
[323366751,1713931850481,-502.2687264,0.00016712,2]
[323366752,1713931850491,-330.04666515,0.00016712,2]
[323366753,1713931850501,-500.0,0.00016712,2]
[323366754,1713931850510,-500.0,0.00016712,2]
[323366755,1713931850520,-703.15,0.00016712,2]
[323366756,1713931850530,-600.04,0.00016712,2]
[323366757,1713931850541,-500.0,0.00016712,2]
[323366758,1713931850550,-500.0,0.00016712,2]
[323366759,1713931850560,-500.0,0.00016712,2]
[323366760,1713931850570,-500.0,0.00016712,2]
[323366761,1713931850580,-500.0,0.00016712,2]
[323366762,1713931850590,-500.0,0.00016712,2]
[323366763,1713931850600,-500.0,0.00016712,2]
[323366764,1713931850610,-500.0,0.00016712,2]
[323366765,1713931850620,-500.0,0.00016712,2]
[323366766,1713931850630,-500.0,0.00016712,2]
[323366767,1713931850640,-500.0,0.00016712,2]
[323366768,1713931850651,-500.0,0.00016712,2]
[323366769,1713931850660,-500.0,0.00016712,2]
[323366770,1713931850670,-500.0,0.00016712,2]
[323366771,1713931850679,-1022.53,0.00016712,2]
[323366772,1713931850688,-500.0,0.00016712,2]
[323366773,1713931850698,-654.42,0.00016712,2]
[323366774,1713931850707,-500.0,0.00016712,2]
[323366775,1713931850717,-500.98063444,0.00016712,2]
[323366776,1713931850726,-500.0,0.00016712,2]
[323366777,1713931850735,-500.0,0.00016712,2]
[323366778,1713931850744,-500.0,0.00016712,2]
[323366779,1713931850753,-318.72066129,0.00016712,2]
[323366780,1713931850763,-500.0,0.00016712,2]
[323366781,1713931850772,-1779.71854748,0.00016712,2]
[323366782,1713931851019,-371.54,0.000163,2]
[323366783,1713931851150,-404.619464,0.000163,2]
[323366784,1713931851162,-776.159464,0.000163,2]
[323366785,1713931851174,-776.159464,0.000163,2]
[323366786,1713931851188,-776.159464,0.000163,2]
[323366787,1713931851201,-1659.6,0.00016438,2]
[323366788,1713931851215,-206.59145252,0.00016712,2]
[323366789,1713931851230,-500.0,0.00016712,2]
[323366790,1713931851244,-500.0,0.00016712,2]
[323366791,1713931851254,-500.0,0.00016712,2]
[323366792,1713931851265,-393.80820921,0.00016712,2]
[323366793,1713931851717,-776.159464,0.000163,2]
[323366794,1713931851729,-776.159464,0.000163,2]
[323366795,1713931851740,-539.919793,0.000163,2]
[323366796,1713931851753,-539.919793,0.000163,2]
[323366797,1713931851765,-776.159464,0.000163,2]
[323366798,1713931851777,-539.919793,0.000163,2]
[323366799,1713931851789,-776.159464,0.000163,2]
[323366800,1713931851801,-106.19179079,0.00016712,2]
[323366801,1713931851813,-638.62777397,0.00016712,2]
[323366802,1713931851824,-500.0,0.00016712,2]
[323366803,1713931851836,-500.0,0.00016712,2]
[323366804,1713931851847,-500.0,0.00016712,2]
[323366805,1713931851859,-493.57828559,0.00016712,2]
[323366806,1713931851871,-500.0,0.00016712,2]
[323366807,1713931851883,-500.0,0.00016712,2]
[323366808,1713931851895,-272.97830825,0.00016712,2]
[323366809,1713931851907,-1543.91,0.00016712,2]
[323366810,1713931851917,-500.0,0.00016712,2]
[323366811,1713931851926,-500.0,0.00016712,2]
[323366812,1713931851935,-500.0,0.00016712,2]
[323366813,1713931851944,-500.80733792,0.00016712,2]
[323366814,1713931851954,-741.98,0.00016712,2]
[323366815,1713931851963,-500.0,0.00016712,2]
[323366816,1713931851972,-855.56055429,0.00016712,2]
[323366817,1713931851997,-539.919793,0.000163,2]
[323366818,1713931852007,-342.54944571,0.00016712,2]
[323366819,1713931852018,-500.0,0.00016712,2]
[323366820,1713931852027,-375.23828263,0.00016712,2]
[323366821,1713931852037,-500.0,0.00016712,2]
[323366822,1713931852046,-500.0,0.00016712,2]
[323366823,1713931852055,-500.0,0.00016712,2]
[323366824,1713931852065,-490.06925596,0.00016712,2]
[323366825,1713931852074,-500.0,0.00016712,2]
[323366826,1713931852084,-500.0,0.00016712,2]
[323366827,1713931852093,-500.0,0.00016712,2]
[323366828,1713931852103,-500.0,0.00016712,2]
[323366829,1713931852112,-500.99147979,0.00016712,2]
[323366830,1713931852344,-501.40276838,0.00016712,2]
[323366831,1713931852359,-500.0,0.00016712,2]
[323366832,1713931852369,-500.0,0.00016712,2]
[323366833,1713931852378,-520.48,0.00016712,2]
[323366834,1713931852387,-500.0,0.00016712,2]
[323366835,1713931852396,-500.0,0.00016712,2]
[323366836,1713931852407,-500.0,0.00016712,2]
[323366837,1713931852417,-618.68,0.00016712,2]
[323366838,1713931852427,-159.75313996,0.00016712,2]
[323366839,1713931852437,-500.0,0.00016712,2]
[323366840,1713931852446,-502.16817635,0.00016712,2]
[323366841,1713931852455,-500.0,0.00016712,2]
[323366842,1713931852464,-777.47,0.00016712,2]
[323366843,1713931852474,-500.69858939,0.00016712,2]
[323366844,1713931852483,-500.0,0.00016712,2]
[323366845,1713931852492,-500.6287357,0.00016712,2]
[323366846,1713931852502,-500.0,0.00016712,2]
[323366847,1713931852511,-500.0,0.00016712,2]
[323366848,1713931852520,-568.21,0.00016712,2]
[323366849,1713931852529,-500.0,0.00016712,2]
[323366850,1713931852538,-380.4771585,0.00016712,2]
[323366851,1713931852547,-502.82,0.00016712,2]
[323366852,1713931852557,-959.79,0.00016712,2]
[323366853,1713931852566,-500.0,0.00016712,2]
[323366854,1713931852575,-125.51576415,0.00016712,2]
[323366892,1713932733298,-157.06659545,0.00016191,2]
[323366893,1713932733318,-1575.31939472,0.00016191,2]
[323366894,1713932733338,-111.1921299,0.00016192,2]
[323367005,1713933037945,-2776.29930889,0.00015997,2]
[323367006,1713933037954,-1676.10589151,0.00015998,2]
[323367007,1713933037964,-300.0,0.00015999,2]
[323367008,1713933037973,-2099.79903615,0.00015999,2]
[323367009,1713933037982,-300.0,0.00015999,2]
[323367010,1713933037991,-154.81422293,0.00015999,2]
[323367011,1713933038001,-24249.00600463,0.00016,2]
[323367012,1713933038010,-1575.31939472,0.00016176,2]
[323367013,1713933038019,-221.89226198,0.00016192,2]
[323367014,1713933038029,-500.0,0.00016199,2]
[323367015,1713933038038,-151.0,0.000163,2]
[323367016,1713933038047,-151.0,0.000163,2]
[323367017,1713933038056,-286.007443,0.000163,2]
[323367018,1713933038066,-155.21057505,0.00016335,2]
[323367019,1713933038075,-287.22529659,0.00016336,2]
[323367020,1713933038084,-44444.0,0.00016337,2]
[323367021,1713933038093,-1000.0,0.00016436,2]
[323367022,1713933038102,-168.40934575,0.00016436,2]
[323367023,1713933038111,-810.9752671,0.00016436,2]
[323367024,1713933038122,-112492.2119944,0.00016436,2]
[323367025,1713933038130,-25883.63453142,0.00016437,2]
[323367026,1713933038141,-1000.0,0.00016437,2]
[323367058,1713933043055,-430.94412634,0.00016437,2]
[323367075,1713933045905,-382724.06438844,0.00016437,2]
[323367076,1713933045915,-500.0,0.00016438,2]
[323367077,1713933045923,-500.0,0.00016438,2]
[323367078,1713933045933,-507.40862947,0.00016438,2]
[323367079,1713933045942,-500.0,0.00016438,2]
[323367080,1713933045951,-500.0,0.00016438,2]
[323367081,1713933045960,-500.0,0.00016438,2]
[323367082,1713933045969,-502.87368092,0.00016438,2]
[323367083,1713933045978,-500.0,0.00016438,2]
[323367084,1713933045987,-1950.83,0.00016438,2]
[323367085,1713933045996,-500.0,0.00016438,2]
[323367086,1713933046005,-500.0,0.00016438,2]
[323367087,1713933046014,-507.33741541,0.00016438,2]
[323367088,1713933046022,-500.0,0.00016438,2]
[323367089,1713933046032,-521.83485721,0.00016438,2]
[323367090,1713933046040,-500.0,0.00016438,2]
[323367091,1713933046051,-500.0,0.00016438,2]
[323367092,1713933046060,-500.36145215,0.00016438,2]
[323367093,1713933046069,-500.0,0.00016438,2]
[323367094,1713933046078,-500.0,0.00016438,2]
[323367095,1713933046087,-500.0,0.00016438,2]
[323367096,1713933046096,-407.21596173,0.00016438,2]
[323367097,1713933046105,-500.0,0.00016438,2]
[323367098,1713933046115,-435.17958722,0.00016438,2]
[323367099,1713933046124,-500.0,0.00016438,2]
[323367100,1713933046133,-500.0,0.00016438,2]
[323367101,1713933046143,-501.11523667,0.00016438,2]
[323367102,1713933046152,-502.42253403,0.00016438,2]
[323367103,1713933046162,-282.36509224,0.00016438,2]
[323367104,1713933046172,-500.0,0.00016438,2]
[323367105,1713933046181,-500.74944613,0.00016438,2]
[323367106,1713933046191,-500.0,0.00016438,2]
[323367107,1713933046200,-500.0,0.00016438,2]
[323367108,1713933046210,-501.1353003,0.00016438,2]
[323367109,1713933046220,-500.97019545,0.00016438,2]
[323367110,1713933046230,-502.3142787,0.00016438,2]
[323367111,1713933046239,-500.0,0.00016438,2]
[323367112,1713933046249,-500.0,0.00016438,2]
[323367113,1713933046259,-605.39,0.00016438,2]
[323367114,1713933046268,-501.68119239,0.00016438,2]
[323367115,1713933046277,-500.0,0.00016438,2]
[323367116,1713933046287,-502.45800508,0.00016438,2]
[323367117,1713933046296,-500.0,0.00016438,2]
[323367118,1713933046305,-500.0,0.00016438,2]
[323367119,1713933046315,-553.31,0.00016438,2]
[323367120,1713933046327,-500.59438046,0.00016438,2]
[323367121,1713933046336,-500.0,0.00016438,2]
[323367122,1713933046345,-502.78063606,0.00016438,2]
[323367123,1713933046354,-500.0,0.00016438,2]
[323367124,1713933046363,-500.0,0.00016438,2]
[323367125,1713933046373,-375.43668071,0.00016438,2]
[323367126,1713933046382,-500.0,0.00016438,2]
[323367127,1713933046391,-501.03965923,0.00016438,2]
[323367128,1713933046400,-500.0,0.00016438,2]
[323367129,1713933046410,-500.0,0.00016438,2]
[323367130,1713933046423,-563.97092301,0.00016438,2]
[323367131,1713933046432,-584.95,0.00016438,2]
[323367132,1713933046441,-500.0,0.00016438,2]
[323367133,1713933046450,-500.0,0.00016438,2]
[323367134,1713933046460,-500.0,0.00016438,2]
[323367135,1713933046469,-587.07678689,0.00016438,2]
[323367136,1713933046478,-500.0,0.00016438,2]
[323367137,1713933046488,-500.81792004,0.00016438,2]
[323367138,1713933046497,-500.0,0.00016438,2]
[323367139,1713933046507,-500.0,0.00016438,2]
[323367140,1713933046516,-567.60153835,0.00016438,2]
[323367141,1713933046525,-500.0,0.00016438,2]
[323367142,1713933046535,-500.0,0.00016438,2]
[323367143,1713933046544,-278.43577197,0.00016438,2]
[323367144,1713933046553,-529.32238476,0.00016438,2]
[323367145,1713933046563,-500.0,0.00016438,2]
[323367146,1713933046572,-500.34145069,0.00016438,2]
[323367147,1713933046581,-500.0,0.00016438,2]
[323367148,1713933046591,-500.0,0.00016438,2]
[323367149,1713933046600,-985.41,0.00016438,2]
[323367150,1713933046610,-514.34315304,0.00016438,2]
[323367151,1713933046620,-575.66,0.00016438,2]
[323367152,1713933046633,-500.0,0.00016438,2]
[323367153,1713933046642,-381.10825736,0.00016438,2]
[323367154,1713933046654,-500.0,0.00016438,2]
[323367155,1713933046663,-575.25,0.00016438,2]
[323367156,1713933046672,-660.92,0.00016438,2]
[323367157,1713933046681,-500.0,0.00016438,2]
[323367158,1713933046691,-500.0,0.00016438,2]
[323367159,1713933046700,-500.0,0.00016438,2]
[323367160,1713933046709,-500.0,0.00016438,2]
[323367161,1713933046719,-500.0,0.00016438,2]
[323367162,1713933046728,-500.0,0.00016438,2]
[323367163,1713933046737,-500.0,0.00016438,2]
[323367164,1713933046746,-469.44067025,0.00016438,2]
[323367165,1713933046756,-500.0,0.00016438,2]
[323367166,1713933046765,-500.0,0.00016438,2]
[323367167,1713933046775,-500.0,0.00016438,2]
[323367168,1713933046784,-500.0,0.00016438,2]
[323367169,1713933046793,-500.0,0.00016438,2]
[323367170,1713933046802,-538.80111584,0.00016438,2]
[323367171,1713933046811,-503.78423081,0.00016438,2]
[323367172,1713933046821,-501.0150114,0.00016438,2]
[323367173,1713933046831,-500.0,0.00016438,2]
[323367174,1713933046840,-500.0,0.00016438,2]
[323367175,1713933046850,-500.0,0.00016438,2]
[323367176,1713933046858,-500.0,0.00016438,2]
[323367177,1713933046868,-500.0,0.00016438,2]
[323367178,1713933046880,-500.0,0.00016438,2]
[323367179,1713933046889,-500.0,0.00016438,2]
[323367180,1713933047053,-500.0,0.00016438,2]
[323367181,1713933047062,-500.0,0.00016438,2]
[323367182,1713933047072,-1108.12,0.00016438,2]
[323367183,1713933047082,-500.0,0.00016438,2]
[323367184,1713933047091,-500.0,0.00016438,2]
[323367185,1713933047101,-501.33435214,0.00016438,2]
[323367186,1713933047109,-500.0,0.00016438,2]
[323367187,1713933047118,-408.06813001,0.00016438,2]
[323367188,1713933047131,-500.0,0.00016438,2]
[323367189,1713933047140,-1098.26,0.00016438,2]
[323367190,1713933047149,-500.0,0.00016438,2]
[323367191,1713933047159,-1325.09,0.00016438,2]
[323367192,1713933047169,-350.20860262,0.00016438,2]
[323367193,1713933047179,-500.49816146,0.00016438,2]
[323367194,1713933047188,-2257.69,0.00016438,2]
[323367195,1713933047197,-500.0,0.00016438,2]
[323367196,1713933047207,-552.98,0.00016438,2]
[323367197,1713933047216,-568.53,0.00016438,2]
[323367198,1713933047226,-151.0,0.00016438,2]
[323367199,1713933047235,-500.0,0.00016438,2]
[323367200,1713933047245,-500.0,0.00016438,2]
[323367201,1713933047254,-501.6801201,0.00016438,2]
[323367202,1713933047262,-500.0,0.00016438,2]
[323367203,1713933047271,-500.0,0.00016438,2]
[323367204,1713933047280,-879.6,0.00016438,2]
[323367205,1713933047289,-500.0,0.00016438,2]
[323367206,1713933047299,-500.0,0.00016438,2]
[323367207,1713933047308,-500.0,0.00016438,2]
[323367208,1713933047318,-500.0,0.00016438,2]
[323367209,1713933047327,-500.0,0.00016438,2]
[323367210,1713933047336,-500.0,0.00016438,2]
[323367211,1713933047346,-500.0,0.00016438,2]
[323367212,1713933047355,-500.0,0.00016438,2]
[323367213,1713933047365,-500.55886998,0.00016438,2]
[323367214,1713933047379,-500.0,0.00016438,2]
[323367215,1713933047388,-500.58911177,0.00016438,2]
[323367216,1713933047399,-500.0,0.00016438,2]
[323367217,1713933047409,-505.40265333,0.00016438,2]
[323367218,1713933047422,-500.0,0.00016438,2]
[323367219,1713933047432,-500.0,0.00016438,2]
[323367220,1713933047442,-510.42,0.00016438,2]
[323367221,1713933047451,-2114.87,0.00016438,2]
[323367222,1713933047460,-739.02,0.00016438,2]
[323367223,1713933047470,-500.0,0.00016438,2]
[323367224,1713933047478,-500.0,0.00016438,2]
[323367225,1713933047487,-500.0,0.00016438,2]
[323367226,1713933047497,-500.77693482,0.00016438,2]
[323367227,1713933047508,-500.0,0.00016438,2]
[323367228,1713933047518,-502.25608869,0.00016438,2]
[323367229,1713933047528,-500.0,0.00016438,2]
[323367230,1713933047537,-693.17,0.00016438,2]
[323367231,1713933047546,-500.0,0.00016438,2]
[323367232,1713933047555,-500.0,0.00016438,2]
[323367233,1713933047565,-500.55967899,0.00016438,2]
[323367234,1713933047574,-1614.06,0.00016438,2]
[323367235,1713933047584,-879.8,0.00016438,2]
[323367236,1713933047594,-151.0,0.00016438,2]
[323367237,1713933047605,-917.28,0.00016438,2]
[323367238,1713933047614,-500.0,0.00016438,2]
[323367239,1713933047625,-817.16,0.00016438,2]
[323367240,1713933047635,-500.0,0.00016438,2]
[323367241,1713933047644,-500.0,0.00016438,2]
[323367242,1713933047654,-155.231892,0.00016438,2]
[323367243,1713933047663,-501.48945057,0.00016438,2]
[323367244,1713933047672,-500.0,0.00016438,2]
[323367245,1713933047682,-155.231892,0.00016438,2]
[323367246,1713933047691,-338.76861173,0.00016438,2]
[323367247,1713933047701,-502.203849,0.00016438,2]
[323367248,1713933047711,-500.0,0.00016438,2]
[323367249,1713933047721,-500.0,0.00016438,2]
[323367250,1713933047731,-500.0,0.00016438,2]
[323367251,1713933047740,-500.0,0.00016438,2]
[323367252,1713933047750,-500.0,0.00016438,2]
[323367253,1713933047760,-500.0,0.00016438,2]
[323367254,1713933047769,-500.0,0.00016438,2]
[323367255,1713933047779,-500.0,0.00016438,2]
[323367256,1713933047788,-500.0,0.00016438,2]
[323367257,1713933047797,-500.0,0.00016438,2]
[323367258,1713933047806,-215.82414383,0.00016438,2]
[323367259,1713933047815,-500.0,0.00016438,2]
[323367260,1713933047824,-268.92614227,0.00016438,2]
[323367261,1713933047835,-500.0,0.00016438,2]
[323367262,1713933047844,-1084.64,0.00016438,2]
[323367263,1713933047853,-500.0,0.00016438,2]
[323367264,1713933047862,-500.0,0.00016438,2]
[323367265,1713933047872,-500.0,0.00016438,2]
[323367266,1713933047883,-500.13954189,0.00016438,2]
[323367267,1713933047891,-195.24514657,0.00016438,2]
[323367268,1713933047900,-500.0,0.00016438,2]
[323367269,1713933047909,-500.0,0.00016438,2]
[323367270,1713933047919,-500.0,0.00016438,2]
[323367271,1713933047928,-1960.19,0.00016438,2]
[323367272,1713933047937,-500.0,0.00016438,2]
[323367273,1713933047947,-500.0,0.00016438,2]